fUST/lending_fUST_20260117
["ID","MTS","AMOUNT","RATE_DAILY","PERIOD"]
[402264545,1768633838381,-500.0,0.00015399,2]
[402264547,1768633838391,-500.0,0.00015399,2]
[402264549,1768633838400,-500.0,0.00015399,2]
[402264551,1768633838410,-500.0,0.00015399,2]
[402264553,1768633838419,-500.0,0.00015399,2]
[402264555,1768633838429,-500.0,0.00015399,2]
[402264557,1768633838439,-500.0,0.00015399,2]
[402264559,1768633838448,-500.0,0.00015399,2]
[402264561,1768633838458,-500.0,0.00015399,2]
[402264563,1768633838468,-197.72264916,0.00015399,2]
[402264565,1768633838478,-500.0,0.00015399,2]
[402264567,1768633838487,-500.0,0.00015399,2]
[402264569,1768633838496,-500.0,0.00015399,2]
[402264571,1768633838506,-500.0,0.00015399,2]
[402264573,1768633838516,-500.0,0.00015399,2]
[402264575,1768633838526,-500.0,0.00015399,2]
[402264577,1768633838536,-500.0,0.00015399,2]
[402264580,1768633838546,-500.0,0.00015399,2]
[402264582,1768633838555,-500.0,0.00015399,2]
[402264584,1768633838570,-500.0,0.00015399,2]
[402264586,1768633838580,-200.0,0.00015399,2]
[402264588,1768633838591,-500.0,0.00015399,2]
[402264590,1768633838601,-500.0,0.00015399,2]
[402264592,1768633838612,-500.0,0.00015399,2]
[402264595,1768633838623,-500.0,0.00015399,2]
[402264597,1768633838633,-394.78707523,0.00015399,2]
[402264599,1768633838646,-105.21292477,0.00015399,2]
[402264601,1768633838658,-500.0,0.00015399,2]
[402264603,1768633838668,-500.0,0.00015399,2]
[402264604,1768633838678,-500.0,0.00015399,2]
[402264605,1768633838689,-500.0,0.00015399,2]
[402264606,1768633838699,-213.04389307,0.00015399,2]
[402264607,1768633838712,-286.95610693,0.00015399,2]
[402264608,1768633838722,-500.0,0.00015399,2]
[402264609,1768633838732,-1500.0,0.000154,2]
[402264610,1768633838741,-543.51888936,0.000154,2]
[402264611,1768633838757,-956.48111064,0.000154,2]
[402264612,1768633838767,-662.00444221,0.000154,2]
[402264613,1768633838779,-418.49770858,0.000154,2]
[402264614,1768633838795,-419.49784921,0.000154,2]
[402264615,1768633838805,-1500.0,0.000154,2]
[402264616,1768633838814,-1500.0,0.000154,2]
[402264617,1768633838824,-1835.195581,0.000154,2]
[402264618,1768633838834,-475.26615534,0.000154,2]
[402264619,1768633838845,-335.07591039,0.000154,2]
[402264620,1768633838855,-2500.0,0.00015464,2]
[402264621,1768633838865,-600.0,0.00015749,30]
[402264622,1768633838875,-600.0,0.00015749,30]
[402264623,1768633838885,-600.0,0.00015749,30]
[402264624,1768633838895,-600.0,0.00015749,30]
[402264625,1768633838906,-600.0,0.00015749,30]
[402264626,1768633838916,-600.0,0.00015749,30]
[402264627,1768633838926,-600.0,0.00015749,30]
[402264628,1768633838936,-600.0,0.00015749,30]
[402264629,1768633838945,-600.0,0.00015749,30]
[402264630,1768633838955,-600.0,0.00015749,30]
[402264631,1768633838965,-600.0,0.00015749,30]
[402264632,1768633838975,-600.0,0.00015749,30]
[402264633,1768633838985,-600.0,0.00015749,30]
[402264634,1768633838996,-293.85068442,0.00015749,30]
[402264635,1768633839006,-500.0,0.00015749,30]
[402264636,1768633839016,-500.0,0.00015749,30]
[402264637,1768633839026,-500.0,0.00015749,30]
[402264638,1768633839036,-500.0,0.00015749,30]
[402264639,1768633839046,-500.0,0.00015749,30]
[402264640,1768633839055,-500.0,0.00015749,30]
[402264641,1768633839070,-500.0,0.00015749,30]
[402264642,1768633839080,-500.0,0.00015749,30]
[402264643,1768633839090,-500.0,0.00015749,30]
[402264644,1768633839099,-500.0,0.00015749,30]
[402264645,1768633839110,-500.0,0.00015749,30]
[402264646,1768633839120,-500.0,0.00015749,30]
[402264647,1768633839130,-500.0,0.00015749,30]
[402264648,1768633839141,-500.62309329,0.00015749,30]
[402264649,1768633839151,-429.0582887,0.00015749,30]
[402264650,1768633839162,-156.47426594,0.00015749,30]
[402264651,1768633839172,-335.07591039,0.0001596,9]
[402264652,1768633839182,-475.26615534,0.0001596,9]
[402264653,1768633839192,-300.0,0.00016,2]
[402264654,1768633839202,-3000.0,0.00016012,2]
[402264655,1768633839212,-335.07591039,0.0001652,17]
[402264656,1768633839222,-475.26615534,0.0001652,17]
[402264657,1768633839235,-300.0,0.00017,3]
[402264661,1768633839647,-335.07591039,0.00017081,25]
[402264662,1768633839670,-475.26615534,0.00017081,25]
[402264663,1768633839680,-269.57724602,0.00017357,2]
[402264664,1768633839689,-335.07591039,0.00017641,32]
[402264665,1768633839699,-475.26615534,0.00017641,32]
[402264666,1768633839709,-1041.66666667,0.00017648,2]
[402264667,1768633839718,-2900.0,0.00017808,7]
[402264668,1768633839727,-583.3655867,0.0001784,2]
[402264669,1768633839738,-1532.22657017,0.00017943,2]
[402264670,1768633839747,-300.0,0.00018,3]
[402264671,1768633839756,-335.07591039,0.00018201,40]
[402264672,1768633839766,-475.26615534,0.00018201,40]
[402264675,1768633839776,-151.0,0.00018314,2]
[402264676,1768633839785,-162.380719,0.00018314,2]
[402264678,1768633839794,-2150.738,0.00018314,2]
[402264679,1768633839803,-168.3888056,0.00018314,2]
[402264680,1768633839812,-250.0,0.00018314,2]
[402264681,1768633839821,-174.61919141,0.00018314,2]
[402264682,1768633839830,-445.202766,0.00018314,2]
[402264683,1768633839839,-181.08010149,0.00018314,2]
[402264684,1768633839848,-187.78006525,0.00018314,2]
[402264686,1768633839858,-194.72792766,0.00018314,2]
[402264688,1768633839868,-201.93286099,0.00018314,2]
[402264689,1768633839879,-209.40437684,0.00018314,2]
[402264690,1768633839889,-217.15233878,0.00018314,2]
[402264691,1768633839898,-151.29902259,0.00018314,2]
[402264692,1768633839908,-763.398784,0.00018318,2]
[402264693,1768633839918,-300.0,0.00018356,5]
[402264694,1768633839928,-168.0,0.00018369,2]
[402264695,1768633839938,-1430.70136641,0.00018493,2]
[402264696,1768633839957,-158.522776,0.00018493,2]
[402264697,1768633839969,-168.0,0.00018608,2]
[402264698,1768633839982,-335.07591039,0.00018761,48]
[402264699,1768633839992,-475.26615534,0.00018761,48]
[402264700,1768633840003,-204.58113665,0.00018777,2]
[402264701,1768633840013,-184.07261618,0.00018777,2]
[402264702,1768633840024,-52738.2506346,0.00018778,2]
[402264703,1768633840434,-526.30212007,0.00018778,2]
[402264704,1768633840914,-341.91260005,0.00018778,2]
[402264705,1768633840931,-5804.79892051,0.00018778,2]
[402264706,1768633840943,-41406.95426698,0.00018778,2]
[402264720,1768633842869,-1980.85827928,0.00018778,2]
[402264721,1768633842915,-13734.20326182,0.00018778,2]
[402264736,1768633845943,-7024.94879854,0.00018778,2]
[402264737,1768633845954,-7199.33428489,0.00018778,2]
[402264738,1768633918997,155.0,2e-05,2]
[402264781,1768635031804,-5000.0,0.00011626,2]
[402264783,1768635031814,-584.0,0.00011626,2]
[402264785,1768635031824,-5000.0,0.00011743,2]
[402264787,1768635031833,-300.0,0.00011859,2]
[402264789,1768635031842,-300.0,0.00011859,2]
[402264792,1768635031853,-10000.0,0.00011862,2]
[402264793,1768635031863,-5000.0,0.00012005,2]
[402264796,1768635031872,-300.0,0.0001302,2]
[402264797,1768635031882,-2290.45173394,0.00013173,2]
[402264800,1768635031892,-500.0,0.00013273,2]
[402264802,1768635031902,-497.8006826,0.00013273,2]
[402264804,1768635031911,-500.0,0.00013273,2]
[402264806,1768635031921,-500.0,0.00013273,2]
[402264808,1768635031931,-500.0,0.00013273,2]
[402264810,1768635031941,-500.0,0.00013273,2]
[402264812,1768635031950,-500.0,0.00013273,2]
[402264814,1768635031959,-500.0,0.00013273,2]
[402264816,1768635031969,-500.0,0.00013273,2]
[402264818,1768635031978,-500.0,0.00013273,2]
[402264820,1768635031987,-50000.0,0.00013273,2]
[402264822,1768635031997,-1000.0,0.00013699,2]
[402264824,1768635032007,-500.0,0.00013699,2]
[402264826,1768635032016,-500.0,0.00013699,2]
[402264828,1768635032026,-500.0,0.00013699,2]
[402264830,1768635032036,-526.67002344,0.00013699,2]
[402264832,1768635032046,-500.0,0.00013699,2]
[402264834,1768635032055,-500.0,0.00013699,2]
[402264836,1768635032064,-351.10042487,0.00013699,2]
[402264838,1768635032073,-501.23330465,0.00013699,2]
[402264840,1768635032082,-500.0,0.00013699,2]
[402264842,1768635032092,-500.0,0.00013699,2]
[402264844,1768635032101,-504.95354358,0.00013699,2]
[402264846,1768635032111,-500.0,0.00013699,2]
[402264848,1768635032121,-500.0,0.00013699,2]
[402264850,1768635032131,-500.0,0.00013699,2]
[402264852,1768635032141,-500.0,0.00013699,2]
[402264854,1768635032151,-500.0,0.00013699,2]
[402264856,1768635032160,-500.0,0.00013699,2]
[402264858,1768635032169,-253.24401436,0.00013699,2]
[402264860,1768635032179,-500.0,0.00013699,2]
[402264862,1768635032188,-500.0,0.00013699,2]
[402264864,1768635032197,-500.0,0.00013699,2]
[402264866,1768635032208,-177.0,0.00014187,2]
[402264868,1768635032218,-327.60308577,0.00014247,2]
[402264870,1768635032226,-498.0,0.00014247,2]
[402264871,1768635032238,-257.10874141,0.00014499,2]
[402264873,1768635032248,-1364.63306956,0.00015,2]
[402264876,1768635032263,-204.0,0.00016187,2]
[402264878,1768635032274,-159.0,0.000165,2]
[402264880,1768635032284,-3215.85899636,0.0001669,2]
[402264882,1768635032293,-1044.45284198,0.0001688,2]
[402264884,1768635032302,-237.68947624,0.00017626,3]
[402264886,1768635032312,-160.0,0.00017648,2]
[402264888,1768635032321,-1041.66666667,0.0001765,2]
[402264889,1768635032330,-160.0,0.000177,2]
[402264891,1768635032339,-2900.0,0.00017808,7]
[402264894,1768635032349,-300.0,0.000179,3]
[402264896,1768635032358,-763.0392162,0.00018041,2]
[402264898,1768635032368,-151.0,0.00018094,2]
[402264899,1768635032377,-2150.738,0.00018094,2]
[402264902,1768635032386,-445.202766,0.00018094,2]
[402264904,1768635032396,-500.0,0.00018186,2]
[402264906,1768635032405,-500.0,0.00018186,2]
[402264907,1768635032416,-500.0,0.00018186,2]
[402264909,1768635032426,-163.48854354,0.00018186,2]
[402264911,1768635032442,-355.30251657,0.00018186,2]
[402264913,1768635032453,-500.0,0.00018186,2]
[402264914,1768635032463,-500.0,0.00018186,2]
[402264915,1768635032472,-500.0,0.00018186,2]
[402264916,1768635032493,-500.0,0.00018186,2]
[402264917,1768635032511,-500.0,0.00018186,2]
[402264918,1768635032520,-384.44019789,0.00018186,2]
[402264919,1768635032530,-231.0,0.00018187,2]
[402264920,1768635032540,-178.66664686,0.00018493,2]
[402264921,1768635032549,-713.95192084,0.00018493,2]
[402264922,1768635032559,-463.76950493,0.00018493,2]
[402264923,1768635032569,-1000.0,0.0001851,5]
[402264924,1768635032578,-393.7731209,0.00018628,2]
[402264925,1768635032589,-299.74612378,0.00018642,2]
[402264926,1768635032599,-2230.315306,0.00018642,2]
[402264927,1768635032609,-461.67526834,0.00018642,2]
[402264928,1768635032618,-411.75,0.00018668,3]
[402264929,1768635032627,-252.27944944,0.00018677,2]
[402264930,1768635032637,-500.0,0.00018677,2]
[402264931,1768635032647,-384.38814341,0.00018677,2]
[402264932,1768635032656,-575.60177274,0.00018677,2]
[402264933,1768635032666,-500.0,0.00018677,2]
[402264934,1768635032676,-55037.26886575,0.00018678,2]
[402264935,1768635032694,-337.54283059,0.00018678,2]
[402264946,1768635038116,-5000.0,0.00014496,2]
[402264947,1768635038126,-2290.45173393,0.00014643,2]
[402264948,1768635038137,-2290.45173393,0.00016112,2]
[402264949,1768635038146,-205.88,0.00018668,3]
[402264950,1768635038156,-589372.24373209,0.00018678,2]
[402265257,1768635042995,-695.7,0.00017582,2]
[402265265,1768635043052,-1224.15179105,0.00017582,2]
[402265291,1768635046403,-370.59994288,0.00017582,2]
[402265292,1768635046412,-1091.68302693,0.00018491,2]
[402265300,1768635479107,717.27,1.998e-05,2]
[402265301,1768635479428,717.27,1.998e-05,2]
[402265324,1768636231960,-2546.64346807,0.0001119,2]
[402265326,1768636231971,-2453.35653193,0.00011303,2]
[402265332,1768636232022,-1779.08496149,0.00011303,2]
[402265334,1768636232035,-534.54761844,0.00011303,2]
[402265337,1768636232048,-233.01088814,0.00011303,2]
[402265339,1768636232059,-813.38756719,0.00011417,2]
[402265387,1768636238152,-172.93520903,0.00011475,2]
[402265388,1768636238162,-35934.8483521,0.00011723,2]
[402265389,1768636238172,-423.2,0.00012329,2]
[402265390,1768636238183,-500.0,0.00013273,2]
[402265391,1768636238192,-500.0,0.00013273,2]
[402265392,1768636238202,-500.0,0.00013273,2]
[402265393,1768636238212,-500.0,0.00013273,2]
[402265394,1768636238222,-500.0,0.00013273,2]
[402265395,1768636238232,-505.69222847,0.00013273,2]
[402265396,1768636238242,-158.0,0.00013273,2]
[402265397,1768636238252,-203.77515229,0.00013273,2]
[402265398,1768636238261,-500.0,0.00013273,2]
[402265399,1768636238271,-41901.11632628,0.00013273,2]
[402265400,1768636238281,-204.06354665,0.00013475,2]
[402265401,1768636238291,-500.0,0.00013698,2]
[402265402,1768636238301,-500.0,0.00013698,2]
[402265403,1768636238310,-500.0,0.00013698,2]
[402265404,1768636238319,-500.0,0.00013699,2]
[402265405,1768636238328,-500.0,0.00013699,2]
[402265406,1768636238338,-186.53198003,0.00013699,2]
[402265407,1768636238347,-500.0,0.00013699,2]
[402265408,1768636238361,-500.0,0.00013699,2]
[402265409,1768636238370,-500.0,0.00013699,2]
[402265410,1768636238379,-500.0,0.00013699,2]
[402265411,1768636238389,-313.78216061,0.00013699,2]
[402265412,1768636238400,-158.2,0.00013699,2]
[402265413,1768636238408,-158.0,0.00013699,2]
[402265414,1768636238419,-500.0,0.00013699,2]
[402265415,1768636238431,-500.0,0.00013699,2]
[402265416,1768636238441,-500.0,0.00013699,2]
[402265417,1768636238450,-158.0,0.00013699,2]
[402265418,1768636238460,-500.0,0.00013699,2]
[402265419,1768636238470,-158.0,0.00013699,2]
[402265420,1768636238479,-167.2,0.00013699,2]
[402265421,1768636238488,-160.0,0.00013699,2]
[402265422,1768636238497,-158.0,0.00013699,2]
[402265423,1768636238507,-238.0,0.00013699,2]
[402265424,1768636238516,-160.0,0.00013699,2]
[402265425,1768636238528,-258.2,0.00013699,2]
[402265426,1768636238538,-500.0,0.00013699,2]
[402265427,1768636238548,-500.0,0.00013699,2]
[402265428,1768636238557,-158.0,0.00013699,2]
[402265429,1768636238567,-505.25947973,0.00013821,2]
[402265430,1768636238577,-1000.0,0.00013821,2]
[402265431,1768636238586,-1000.0,0.00013821,2]
[402265432,1768636238596,-1000.0,0.00013821,2]
[402265433,1768636238606,-522.04357159,0.00013821,2]
[402265434,1768636238616,-462.84443668,0.00013821,2]
[402265435,1768636238626,-500.0,0.00014246,2]
[402265436,1768636238636,-500.0,0.00014246,2]
[402265437,1768636238645,-500.0,0.00014246,2]
[402265438,1768636238655,-500.0,0.00014246,2]
[402265439,1768636238665,-500.0,0.00014246,2]
[402265440,1768636238675,-500.0,0.00014246,2]
[402265441,1768636238684,-368.97876182,0.00014246,2]
[402265442,1768636238694,-500.0,0.00014246,2]
[402265443,1768636238703,-500.0,0.00014246,2]
[402265444,1768636238713,-500.0,0.00014246,2]
[402265445,1768636238722,-500.0,0.00014246,2]
[402265446,1768636238732,-500.0,0.00014246,2]
[402265447,1768636238742,-500.0,0.00014246,2]
[402265448,1768636238751,-500.0,0.00014246,2]
[402265449,1768636238760,-500.0,0.00014246,2]
[402265450,1768636238770,-500.0,0.00014246,2]
[402265451,1768636238780,-500.0,0.00014246,2]
[402265452,1768636238789,-500.0,0.00014246,2]
[402265453,1768636238799,-500.0,0.00014246,2]
[402265454,1768636238808,-500.0,0.00014246,2]
[402265455,1768636238818,-500.0,0.00014246,2]
[402265456,1768636238827,-1000.0,0.00014247,2]
[402265457,1768636238837,-587.52830239,0.00014247,2]
[402265458,1768636238846,-500.0,0.00014247,2]
[402265459,1768636238856,-500.0,0.00014247,2]
[402265460,1768636238866,-342.42744091,0.00014247,2]
[402265461,1768636238875,-1000.0,0.00014247,2]
[402265462,1768636238885,-1000.0,0.00014247,2]
[402265463,1768636238894,-1148.13731473,0.00014247,2]
[402265464,1768636238904,-1000.0,0.00014247,2]
[402265465,1768636238914,-1083.81618829,0.00014247,2]
[402265466,1768636238924,-1000.0,0.00014247,2]
[402265467,1768636238934,-502.15537152,0.00014247,2]
[402265468,1768636238943,-151.0,0.000143,2]
[402265469,1768636238953,-151.0,0.000143,2]
[402265470,1768636238962,-58387.6423223,0.00014301,2]
[402265471,1768636238971,-1500.0,0.00014368,2]
[402265472,1768636238981,-1500.0,0.00014368,2]
[402265473,1768636238991,-1500.0,0.00014368,2]
[402265474,1768636239001,-151.0,0.000147,2]
[402265475,1768636239011,-151.0,0.000147,2]
[402265476,1768636239021,-660.83132082,0.00014795,2]
[402265477,1768636239031,-1493.74297815,0.00014795,2]
[402265478,1768636239040,-166.91973232,0.00014795,2]
[402265479,1768636239050,-519.10615049,0.00014795,2]
[402265480,1768636239059,-1500.0,0.00014795,2]
[402265481,1768636239068,-1782.26163417,0.00014916,2]
[402265482,1768636239078,-235.126695,0.00015068,2]
[402265483,1768636239087,-151.0,0.000152,2]
[402265484,1768636239096,-151.0,0.000152,2]
[402265485,1768636239106,-1561.32249094,0.00015342,2]
[402265486,1768636239115,-252.06,0.000154,10]
[402265487,1768636239124,-235.19188428,0.00015475,2]
[402265488,1768636239133,-151.0,0.000156,2]
[402265489,1768636239144,-151.0,0.000156,2]
[402265490,1768636239155,-151.0,0.00016,2]
[402265491,1768636239166,-151.0,0.00016,2]
[402265492,1768636239176,-151.0,0.000164,2]
[402265493,1768636239186,-151.0,0.000164,2]
[402265494,1768636239196,-184.1,0.00016871,2]
[402265495,1768636239206,-151.0,0.000169,2]
[402265496,1768636239215,-151.0,0.000169,2]
[402265497,1768636239225,-151.0,0.000173,2]
[402265498,1768636239235,-151.0,0.000173,2]
[402265499,1768636239244,-352.0,0.0001744,2]
[402265500,1768636239254,-180.1794057,0.00017458,2]
[402265501,1768636239263,-266.3202219,0.00017475,2]
[402265502,1768636239273,-184.1,0.00017537,2]
[402265503,1768636239283,-500.0,0.00017567,2]
[402265504,1768636239292,-151.0,0.000177,2]
[402265505,1768636239302,-151.0,0.000177,2]
[402265506,1768636239311,-306.0,0.00017753,2]
[402265507,1768636239320,-2600.0,0.00017808,7]
[402265508,1768636239330,-157.58259483,0.000179,2]
[402265509,1768636239339,-100000.0,0.0001799,2]
[402265510,1768636239348,-500.0,0.00017999,2]
[402265511,1768636239360,-500.0,0.00017999,2]
[402265512,1768636239370,-347.95996447,0.00017999,2]
[402265513,1768636239379,-602.92124092,0.00017999,2]
[402265514,1768636239388,-227.37803138,0.00017999,2]
[402265515,1768636239398,-13761.0,0.00018,2]
[402265516,1768636239407,-151.0,0.00018,2]
[402265517,1768636239416,-162.380719,0.00018,2]
[402265518,1768636239426,-445.202766,0.00018,2]
[402265519,1768636239435,-151.0,0.00018,2]
[402265520,1768636239444,-168.3888056,0.00018,2]
[402265521,1768636239453,-151.0,0.00018,2]
[402265522,1768636239463,-174.61919141,0.00018,2]
[402265523,1768636239472,-151.0,0.00018,2]
[402265524,1768636239480,-181.08010149,0.00018,2]
[402265525,1768636239490,-151.0,0.00018,2]
[402265526,1768636239500,-187.78006525,0.00018,2]
[402265527,1768636239511,-151.0,0.00018,2]
[402265528,1768636239819,-194.72792766,0.00018,2]
[402265529,1768636239830,-151.0,0.00018,2]
[402265530,1768636239840,-201.93286099,0.00018,2]
[402265531,1768636239850,-151.0,0.00018,2]
[402265532,1768636239859,-209.40437684,0.00018,2]
[402265533,1768636239868,-151.0,0.00018,2]
[402265534,1768636239877,-217.15233878,0.00018,2]
[402265535,1768636239886,-2150.738,0.00018,2]
[402265536,1768636239895,-151.0,0.00018,2]
[402265538,1768636239904,-225.18697532,0.00018,2]
[402265539,1768636239914,-30000.0,0.00018,2]
[402265540,1768636239923,-151.0,0.00018,2]
[402265541,1768636239933,-233.51889341,0.00018,2]
[402265543,1768636239942,-151.0,0.00018,2]
[402265545,1768636239951,-242.15909246,0.00018,2]
[402265547,1768636239961,-151.0,0.00018,2]
[402265549,1768636239970,-251.11897888,0.00018,2]
[402265551,1768636239979,-151.0,0.00018,2]
[402265553,1768636239989,-260.4103811,0.00018,2]
[402265555,1768636239998,-151.0,0.00018,2]
[402265557,1768636240007,-270.0455652,0.00018,2]
[402265559,1768636240020,-151.0,0.00018,2]
[402265561,1768636240029,-151.0,0.00018,2]
[402265563,1768636240040,-280.03725112,0.00018,2]
[402265565,1768636240049,-151.0,0.00018,2]
[402265567,1768636240058,-151.0,0.00018,2]
[402265569,1768636240068,-290.39862941,0.00018,2]
[402265571,1768636240077,-151.0,0.00018,2]
[402265573,1768636240086,-301.1433787,0.00018,2]
[402265575,1768636240095,-151.0,0.00018,2]
[402265578,1768636240105,-151.0,0.00018,2]
[402265580,1768636240114,-193.25034379,0.00018,2]
[402265582,1768636240123,-1041.66666667,0.00018072,2]
[402265584,1768636240132,-157.58259481,0.00018098,2]
[402265586,1768636240141,-451.88,0.00018104,2]
[402265588,1768636240151,-451.88,0.00018104,2]
[402265589,1768636240160,-451.88,0.00018104,2]
[402265591,1768636240170,-451.88,0.00018104,2]
[402265593,1768636240180,-451.88,0.00018104,2]
[402265596,1768636240190,-451.88,0.00018104,2]
[402265598,1768636240200,-451.88,0.00018104,2]
[402265600,1768636240209,-184.06,0.00018104,2]
[402265602,1768636240219,-151.0,0.000182,2]
[402265604,1768636240229,-151.0,0.000182,2]
[402265605,1768636240239,-184.1,0.00018204,2]
[402265607,1768636240249,-157.58259481,0.00018297,2]
[402265609,1768636240259,-153.0,0.00018311,2]
[402265612,1768636240268,-795.47171845,0.00018314,2]
[402265614,1768636240278,-373.13876823,0.00018314,2]
[402265616,1768636240288,-1492.55507293,0.00018314,2]
[402265618,1768636240297,-3178.70498694,0.00018314,2]
[402265620,1768636240306,-3354.89066518,0.00018314,2]
[402265622,1768636240316,-602.3409351,0.00018415,2]
[402265624,1768636240325,-235.126695,0.00018493,2]
[402265626,1768636240335,-157.58259481,0.00018495,2]
[402265628,1768636240344,-461.67526834,0.00018548,2]
[402265630,1768636240358,-2230.315306,0.00018548,2]
[402265632,1768636240368,-31110.0,0.00018548,2]
[402265634,1768636240377,-228.977496,0.00018578,2]
[402265636,1768636240387,-228.977496,0.00018578,2]
[402265638,1768636240397,-228.977496,0.00018578,2]
[402265640,1768636240406,-228.977496,0.00018578,2]
[402265642,1768636240417,-151.0,0.00018578,2]
[402265644,1768636240427,-836936.25364723,0.00018578,2]
[402265647,1768636240442,-2960.73088,0.00018578,2]
[402265649,1768636240453,-1074.99956033,0.00018578,2]
[402265651,1768636240464,-3535.89918506,0.00018578,2]
[402265674,1768636240668,-675.61857851,0.0001136,2]
[402265676,1768636240679,-661.98869106,0.0001136,2]
[402265844,1768636243220,-3662.39273043,0.0001136,2]
[402265845,1768636243230,-57.75726881,0.00018578,2]
[402265866,1768636246330,-352.67,0.00018568,3]
[402265867,1768636246339,-155434.35945857,0.00018578,2]
[402265868,1768636246349,-21068.9542342,0.00018595,2]
[402265870,1768636246361,-42137.9084686,0.00018595,2]
[402265871,1768636246370,-6785.5509475,0.00018595,2]
[402265872,1768636246379,-320112.75979074,0.0001862,2]
[402265885,1768637145975,170.8554559,7.333e-05,2]
[402265886,1768637280272,502.09,1.998e-05,24]
[402265887,1768637280331,502.09,1.998e-05,24]
[402265899,1768637432289,-2218.70987397,0.00011766,2]
[402265901,1768637432300,-330.25242726,0.00011766,2]
[402265904,1768637432323,-716.65322861,0.00011766,2]
[402265907,1768637432335,-1734.38447016,0.00011766,2]
[402265909,1768637432345,-2751.27327846,0.00011885,2]
[402265911,1768637432358,-2248.72672154,0.00011885,2]
[402265913,1768637432367,-587.0,0.00011885,2]
[402265915,1768637432376,-172.64911121,0.00011945,2]
[402265917,1768637432386,-486.52501919,0.00012005,2]
[402265919,1768637432398,-4513.47498081,0.00012005,2]
[402265921,1768637432408,-333.60184896,0.00013273,2]
[402265923,1768637432417,-422.22327631,0.00013273,2]
[402265925,1768637432428,-86.32263606,0.00013273,2]
[402265927,1768637432438,-161.14886831,0.00013273,2]
[402265929,1768637432447,-500.0,0.00013273,2]
[402265932,1768637432457,-529.69418364,0.00013698,2]
[402265936,1768637432466,-5846.56588855,0.00013699,2]
[402265938,1768637432481,-170.0,0.00013699,2]
[402265940,1768637432490,-158.0,0.00013699,2]
[402265942,1768637432500,-158.0,0.00013699,2]
[402265944,1768637432511,-156.0,0.00013699,2]
[402265946,1768637432521,-258.2,0.00013699,2]
[402265948,1768637432532,-158.0,0.00013699,2]
[402265950,1768637432542,-500.0,0.00013699,2]
[402265953,1768637432552,-1000.0,0.00013821,2]
[402265955,1768637432562,-203.72595123,0.00013945,2]
[402265972,1768637432916,-1000.0,0.00014247,2]
[402265973,1768637432926,-981.77926784,0.00014368,2]
[402265974,1768637432936,-1000.0,0.00014718,2]
[402265975,1768637432946,-290.221233,0.00014895,2]
[402265976,1768637432956,-405.97336672,0.000152,2]
[402265977,1768637432966,-270.79361543,0.000154,2]
[402265978,1768637432975,-202.98668329,0.000154,2]
[402265979,1768637432986,-405.97336672,0.00015534,5]
[402265980,1768637432996,-405.97336672,0.00015868,9]
[402265981,1768637433006,-234.80279125,0.00015945,2]
[402265982,1768637433016,-405.97336672,0.00016201,13]
[402265983,1768637433025,-405.97336672,0.00016535,16]
[402265984,1768637433035,-405.97336672,0.00016869,20]
[402265985,1768637433046,-153.4,0.00016939,2]
[402265986,1768637433059,-405.97,0.00017103,24]
[402265987,1768637433068,-276.73,0.00017103,24]
[402265988,1768637433078,-276.73,0.00017103,24]
[402265989,1768637433088,-276.73,0.00017103,24]